[Event "November 21 Early 2023"]
[Site "https://www.chess.com"]
[Date "2023.11.21"]
[Round "1"]
[White "Khromkin, Andrey"]
[Black "Vakhlamov, Igor L."]
[Result "0-1"]
[Board "70"]
[TimeControl "180+1"]
[WhiteFideId "4154126"]
[BlackFideId "24126748"]
[WhiteElo "2456"]
[BlackElo "2407"]
[WhiteTeam "RUS"]
[BlackTeam "RUS"]
[WhiteClock "0:00:00"]
[BlackClock "0:00:08"]

1. d4 {[%clk 0:03:00]}  d5 {[%clk 0:02:52]} 2. c4 {[%clk 0:03:00]}  e6 {[%clk 0:02:52]} 3. Nc3 {[%clk 0:02:59]}  c5 {[%clk 0:02:50]} 4. cxd5 {[%clk 0:02:58]}  exd5 {[%clk 0:02:51]} 5. Nf3 {[%clk 0:02:57]}  Nc6 {[%clk 0:02:44]} 6. g3 {[%clk 0:02:57]}  Nf6 {[%clk 0:02:43]} 7. Bg2 {[%clk 0:02:58]}  Be7 {[%clk 0:02:43]} 8. O-O {[%clk 0:02:58]}  O-O {[%clk 0:02:42]} 9. Bg5 {[%clk 0:02:55]}  c4 {[%clk 0:02:42]} 10. Ne5 {[%clk 0:02:55]}  Be6 {[%clk 0:02:39]} 11. Nxc6 {[%clk 0:02:50]}  bxc6 {[%clk 0:02:39]} 12. b3 {[%clk 0:02:51]}  Qa5 {[%clk 0:02:33]} 13. Bd2 {[%clk 0:02:49]}  Bb4 {[%clk 0:02:21]} 14. Qc2 {[%clk 0:02:45]}  Rfc8 {[%clk 0:01:49]} 15. a3 {[%clk 0:02:37]}  cxb3 {[%clk 0:01:48]} 16. Qxb3 {[%clk 0:02:32]}  Be7 {[%clk 0:01:42]} 17. Ne4 {[%clk 0:02:18]}  dxe4 {[%clk 0:01:22]} 18. Qxe6 {[%clk 0:02:16]}  Qxd2 {[%clk 0:01:22]} 19. Qxe7 {[%clk 0:02:13]}  Qxd4 {[%clk 0:01:09]} 20. Rab1 {[%clk 0:02:01]}  Re8 {[%clk 0:01:03]} 21. Qc7 {[%clk 0:01:54]}  Qa4 {[%clk 0:00:53]} 22. Rb7 {[%clk 0:01:48]}  Rf8 {[%clk 0:00:50]} 23. Rc1 {[%clk 0:01:31]}  Qxa3 {[%clk 0:00:49]} 24. Rxc6 {[%clk 0:01:31]}  h5 {[%clk 0:00:42]} 25. Rxf6 {[%clk 0:01:25]}  Qa1+ {[%clk 0:00:40]} 26. Bf1 {[%clk 0:01:20]}  Qxf6 {[%clk 0:00:41]} 27. Bg2 {[%clk 0:01:18]}  Qa1+ {[%clk 0:00:37]} 28. Bf1 {[%clk 0:01:18]}  a5 {[%clk 0:00:38]} 29. e3 {[%clk 0:01:14]}  a4 {[%clk 0:00:37]} 30. Kg2 {[%clk 0:01:14]}  a3 {[%clk 0:00:36]} 31. Bc4 {[%clk 0:01:14]}  Qf6 {[%clk 0:00:36]} 32. Ba2 {[%clk 0:01:04]}  Rac8 {[%clk 0:00:35]} 33. Qf4 {[%clk 0:00:51]}  Qxf4 {[%clk 0:00:22]} 34. gxf4 {[%clk 0:00:51]}  Rc2 {[%clk 0:00:22]} 35. Bd5 {[%clk 0:00:51]}  Rc5 {[%clk 0:00:22]} 36. Ba2 {[%clk 0:00:45]}  Rc2 {[%clk 0:00:18]} 37. Bd5 {[%clk 0:00:44]}  g6 {[%clk 0:00:16]} 38. Ra7 {[%clk 0:00:43]}  Rc3 {[%clk 0:00:15]} 39. Bxe4 {[%clk 0:00:42]}  Rd8 {[%clk 0:00:16]} 40. f5 {[%clk 0:00:35]}  gxf5 {[%clk 0:00:16]} 41. Bxf5 {[%clk 0:00:35]}  Rd2 {[%clk 0:00:17]} 42. Bb1 {[%clk 0:00:20]}  Rxe3 {[%clk 0:00:13]} 43. Ra5 {[%clk 0:00:15]}  Rb3 {[%clk 0:00:10]} 44. Bf5 {[%clk 0:00:09]}  a2 {[%clk 0:00:09]} 45. h4 {[%clk 0:00:08]}  Rc3 {[%clk 0:00:08]} 46. Be4 {[%clk 0:00:00]}  Rc1 {[%clk 0:00:08]} 0-1

[Event "November 21 Early 2023"]
[Site "https://www.chess.com"]
[Date "2023.11.21"]
[Round "1"]
[White "Urazayev, Arystanbek"]
[Black "Estrada Nieto, Julian"]
[Result "1-0"]
[Board "71"]
[TimeControl "180+1"]
[WhiteFideId "13709810"]
[BlackFideId "5101018"]
[WhiteElo "2405"]
[BlackElo "2161"]
[WhiteTeam "KAZ"]
[BlackTeam "ESP"]
[WhiteClock "0:01:19"]
[BlackClock "0:00:14"]

1. d4 {[%clk 0:03:00]}  d5 {[%clk 0:02:58]} 2. c4 {[%clk 0:03:01]}  dxc4 {[%clk 0:02:53]} 3. Nf3 {[%clk 0:03:01]}  Nf6 {[%clk 0:02:54]} 4. e3 {[%clk 0:03:02]}  e6 {[%clk 0:02:54]} 5. Bxc4 {[%clk 0:03:02]}  c5 {[%clk 0:02:55]} 6. O-O {[%clk 0:03:02]}  a6 {[%clk 0:02:56]} 7. e4 {[%clk 0:03:03]}  b5 {[%clk 0:02:46]} 8. Be2 {[%clk 0:03:03]}  cxd4 {[%clk 0:02:47]} 9. e5 {[%clk 0:02:56]}  Ne4 {[%clk 0:02:44]} 10. a4 {[%clk 0:02:49]}  b4 {[%clk 0:02:40]} 11. Nxd4 {[%clk 0:02:49]}  Bc5 {[%clk 0:02:19]} 12. Be3 {[%clk 0:02:48]}  Bb7 {[%clk 0:02:17]} 13. Bf3 {[%clk 0:02:36]}  Ra7 {[%clk 0:01:52]} 14. Qd3 {[%clk 0:02:19]}  f5 {[%clk 0:01:44]} 15. Bxe4 {[%clk 0:02:05]}  Bxe4 {[%clk 0:01:41]} 16. Qc4 {[%clk 0:02:06]}  Qd5 {[%clk 0:01:38]} 17. Rc1 {[%clk 0:01:59]}  Nd7 {[%clk 0:01:22]} 18. Nd2 {[%clk 0:01:51]}  Bxg2 {[%clk 0:01:19]} 19. Nxe6 {[%clk 0:01:30]}  Qxc4 {[%clk 0:01:08]} 20. Nxc4 {[%clk 0:01:30]}  Bxe3 {[%clk 0:01:05]} 21. Nxe3 {[%clk 0:01:31]}  Bb7 {[%clk 0:00:54]} 22. Nxg7+ {[%clk 0:01:26]}  Kf7 {[%clk 0:00:53]} 23. Rc7 {[%clk 0:01:24]}  Kxg7 {[%clk 0:00:51]} 24. Rxd7+ {[%clk 0:01:24]}  Kg6 {[%clk 0:00:49]} 25. Rad1 {[%clk 0:01:25]}  Rg8 {[%clk 0:00:47]} 26. R1d6+ {[%clk 0:01:24]}  Kg5 {[%clk 0:00:47]} 27. Kf1 {[%clk 0:01:23]}  a5 {[%clk 0:00:44]} 28. Ke1 {[%clk 0:01:22]}  Rc8 {[%clk 0:00:41]} 29. Kd2 {[%clk 0:01:21]}  f4 {[%clk 0:00:40]} 30. Nd5 {[%clk 0:01:20]}  Bxd5 {[%clk 0:00:37]} 31. Rxa7 {[%clk 0:01:19]}  Bb3 {[%clk 0:00:35]} 32. e6 {[%clk 0:01:16]}  Rc2+ {[%clk 0:00:35]} 33. Kd3 {[%clk 0:01:16]}  Rc1 {[%clk 0:00:28]} 34. e7 {[%clk 0:01:15]}  Bxa4 {[%clk 0:00:28]} 35. Rxa5+ {[%clk 0:01:15]}  Kg4 {[%clk 0:00:18]} 36. Rxa4 {[%clk 0:01:14]}  Re1 {[%clk 0:00:18]} 37. Ra7 {[%clk 0:01:13]}  Kf3 {[%clk 0:00:17]} 38. Rd8 {[%clk 0:01:13]}  Kxf2 {[%clk 0:00:17]} 39. e8=Q {[%clk 0:01:13]}  Rxe8 {[%clk 0:00:17]} 40. Rxe8 {[%clk 0:01:14]}  f3 {[%clk 0:00:18]} 41. Rf7 {[%clk 0:01:15]}  Kg2 {[%clk 0:00:18]} 42. Rg8+ {[%clk 0:01:15]}  Kf2 {[%clk 0:00:17]} 43. Rgf8 {[%clk 0:01:16]}  b3 {[%clk 0:00:18]} 44. Rxf3+ {[%clk 0:01:17]}  Kg2 {[%clk 0:00:18]} 45. R3f7 {[%clk 0:01:17]}  h5 {[%clk 0:00:17]} 46. Rg8+ {[%clk 0:01:18]}  Kh3 {[%clk 0:00:16]} 47. Rh7 {[%clk 0:01:19]}  h4 {[%clk 0:00:16]} 48. Ke2 {[%clk 0:01:18]}  Kxh2 {[%clk 0:00:14]} 49. Rxh4# {[%clk 0:01:19]} 1-0

[Event "November 21 Early 2023"]
[Site "https://www.chess.com"]
[Date "2023.11.21"]
[Round "1"]
[White "Kassimov, Baurzhan"]
[Black "Maksimovic, Bojan"]
[Result "0-1"]
[Board "74"]
[TimeControl "180+1"]
[WhiteFideId "13704800"]
[BlackFideId "14408120"]
[WhiteElo "2220"]
[BlackElo "2546"]
[WhiteTeam "KAZ"]
[BlackTeam "BIH"]
[WhiteClock "0:00:01"]
[BlackClock "0:00:59"]

1. c4 {[%clk 0:02:58]}  Nf6 {[%clk 0:02:59]} 2. Nc3 {[%clk 0:02:58]}  g6 {[%clk 0:02:58]} 3. g3 {[%clk 0:02:58]}  Bg7 {[%clk 0:02:58]} 4. Bg2 {[%clk 0:02:58]}  O-O {[%clk 0:02:58]} 5. Nf3 {[%clk 0:02:59]}  d6 {[%clk 0:02:58]} 6. O-O {[%clk 0:02:57]}  e5 {[%clk 0:02:57]} 7. d3 {[%clk 0:02:52]}  Re8 {[%clk 0:02:56]} 8. Bg5 {[%clk 0:02:46]}  h6 {[%clk 0:02:54]} 9. Bxf6 {[%clk 0:02:46]}  Bxf6 {[%clk 0:02:55]} 10. Nd2 {[%clk 0:02:45]}  a5 {[%clk 0:02:54]} 11. a3 {[%clk 0:02:44]}  Bg7 {[%clk 0:02:52]} 12. Rb1 {[%clk 0:02:43]}  Nc6 {[%clk 0:02:47]} 13. b4 {[%clk 0:02:42]}  axb4 {[%clk 0:02:48]} 14. axb4 {[%clk 0:02:43]}  e4 {[%clk 0:02:48]} 15. Nd5 {[%clk 0:02:15]}  exd3 {[%clk 0:02:47]} 16. exd3 {[%clk 0:02:16]}  Nd4 {[%clk 0:02:47]} 17. b5 {[%clk 0:02:09]}  Ra2 {[%clk 0:02:29]} 18. Nc3 {[%clk 0:01:43]}  Ra3 {[%clk 0:02:24]} 19. Nb3 {[%clk 0:01:31]}  Qg5 {[%clk 0:01:34]} 20. Ne4 {[%clk 0:00:34]}  Qe5 {[%clk 0:01:14]} 21. Nxd4 {[%clk 0:00:19]}  Qxd4 {[%clk 0:01:15]} 22. Rb3 {[%clk 0:00:20]}  Ra2 {[%clk 0:01:13]} 23. Nc3 {[%clk 0:00:16]}  Bg4 {[%clk 0:00:59]} 24. Qc1 {[%clk 0:00:09]}  Qxd3 {[%clk 0:00:58]} 25. Ra3 {[%clk 0:00:02]}  Rxa3 {[%clk 0:00:57]} 26. Qxa3 {[%clk 0:00:03]}  Qxc3 {[%clk 0:00:58]} 27. Qxc3 {[%clk 0:00:01]}  Bxc3 {[%clk 0:00:59]} 0-1

[Event "November 21 Early 2023"]
[Site "https://www.chess.com"]
[Date "2023.11.21"]
[Round "1"]
[White "Swicarz, Maciej"]
[Black "Molina, Roberto Junio Brito"]
[Result "0-1"]
[Board "78"]
[TimeControl "180+1"]
[WhiteFideId "1113585"]
[BlackFideId "2109450"]
[WhiteElo "2127"]
[BlackElo "2389"]
[WhiteTeam "POL"]
[BlackTeam "BRA"]
[WhiteClock "0:00:01"]
[BlackClock "0:00:14"]

1. c4 {[%clk 0:03:00]}  c6 {[%clk 0:02:59]} 2. Nf3 {[%clk 0:02:58]}  d5 {[%clk 0:03:00]} 3. d4 {[%clk 0:02:58]}  Nf6 {[%clk 0:03:00]} 4. Qb3 {[%clk 0:02:57]}  dxc4 {[%clk 0:02:59]} 5. Qxc4 {[%clk 0:02:57]}  Bf5 {[%clk 0:03:00]} 6. g3 {[%clk 0:02:56]}  e6 {[%clk 0:02:58]} 7. Bg2 {[%clk 0:02:56]}  Be7 {[%clk 0:02:58]} 8. O-O {[%clk 0:02:56]}  O-O {[%clk 0:02:59]} 9. e3 {[%clk 0:02:56]}  h6 {[%clk 0:02:57]} 10. Rd1 {[%clk 0:02:56]}  Nbd7 {[%clk 0:02:57]} 11. Nc3 {[%clk 0:02:56]}  Rc8 {[%clk 0:02:57]} 12. Qe2 {[%clk 0:02:55]}  Ne4 {[%clk 0:02:55]} 13. Ne1 {[%clk 0:02:49]}  Nxc3 {[%clk 0:02:52]} 14. bxc3 {[%clk 0:02:50]}  Qa5 {[%clk 0:02:47]} 15. e4 {[%clk 0:02:41]}  Bg6 {[%clk 0:02:47]} 16. Bd2 {[%clk 0:02:37]}  Rfd8 {[%clk 0:02:46]} 17. Nd3 {[%clk 0:02:34]}  Qa6 {[%clk 0:02:44]} 18. Qe3 {[%clk 0:02:26]}  c5 {[%clk 0:02:29]} 19. h4 {[%clk 0:02:20]}  cxd4 {[%clk 0:02:25]} 20. cxd4 {[%clk 0:02:20]}  Nb6 {[%clk 0:02:22]} 21. Nf4 {[%clk 0:02:09]}  Nc4 {[%clk 0:02:19]} 22. Qe2 {[%clk 0:01:49]}  Bh7 {[%clk 0:02:15]} 23. d5 {[%clk 0:01:37]}  exd5 {[%clk 0:01:49]} 24. Nxd5 {[%clk 0:01:34]}  Bd6 {[%clk 0:01:42]} 25. Bf1 {[%clk 0:01:16]}  Nxd2 {[%clk 0:01:17]} 26. Qxa6 {[%clk 0:01:11]}  Nf3+ {[%clk 0:01:16]} 27. Kg2 {[%clk 0:01:10]}  Nxh4+ {[%clk 0:01:16]} 28. gxh4 {[%clk 0:01:11]}  bxa6 {[%clk 0:01:16]} 29. Bd3 {[%clk 0:00:56]}  Kf8 {[%clk 0:01:02]} 30. Rac1 {[%clk 0:00:51]}  Rxc1 {[%clk 0:00:34]} 31. Rxc1 {[%clk 0:00:52]}  f6 {[%clk 0:00:23]} 32. Rc6 {[%clk 0:00:49]}  Bb8 {[%clk 0:00:21]} 33. Rxa6 {[%clk 0:00:48]}  Rxd5 {[%clk 0:00:20]} 34. exd5 {[%clk 0:00:45]}  Bxd3 {[%clk 0:00:21]} 35. Ra5 {[%clk 0:00:38]}  Ke7 {[%clk 0:00:19]} 36. Kf3 {[%clk 0:00:37]}  Kd6 {[%clk 0:00:14]} 37. Ke3 {[%clk 0:00:37]}  Bf1 {[%clk 0:00:13]} 38. Kd4 {[%clk 0:00:36]}  a6 {[%clk 0:00:14]} 39. f3 {[%clk 0:00:33]}  Ba7+ {[%clk 0:00:14]} 40. Ke4 {[%clk 0:00:33]}  Bb6 {[%clk 0:00:14]} 41. Ra3 {[%clk 0:00:30]}  Bc5 {[%clk 0:00:13]} 42. Rc3 {[%clk 0:00:28]}  g6 {[%clk 0:00:13]} 43. Rc1 {[%clk 0:00:19]}  Bh3 {[%clk 0:00:12]} 44. Rd1 {[%clk 0:00:12]}  Bf5+ {[%clk 0:00:13]} 45. Kf4 {[%clk 0:00:12]}  Ba3 {[%clk 0:00:09]} 46. h5 {[%clk 0:00:12]}  Bb2 {[%clk 0:00:08]} 47. hxg6 {[%clk 0:00:11]}  Bxg6 {[%clk 0:00:09]} 48. Kg4 {[%clk 0:00:08]}  f5+ {[%clk 0:00:09]} 49. Kf4 {[%clk 0:00:07]}  Be5+ {[%clk 0:00:09]} 50. Ke3 {[%clk 0:00:07]}  Bf7 {[%clk 0:00:10]} 51. f4 {[%clk 0:00:07]}  Bf6 {[%clk 0:00:11]} 52. Rh1 {[%clk 0:00:06]}  h5 {[%clk 0:00:11]} 53. Rd1 {[%clk 0:00:05]}  h4 {[%clk 0:00:11]} 54. Kf3 {[%clk 0:00:05]}  Bxd5+ {[%clk 0:00:11]} 55. Kf2 {[%clk 0:00:05]}  Kc5 {[%clk 0:00:12]} 56. Rc1+ {[%clk 0:00:05]}  Kd4 {[%clk 0:00:13]} 57. Rd1+ {[%clk 0:00:05]}  Ke4 {[%clk 0:00:13]} 58. Rf1 {[%clk 0:00:02]}  Kxf4 {[%clk 0:00:13]} 59. Ke2+ {[%clk 0:00:03]}  Ke5 {[%clk 0:00:13]} 60. Kd3 {[%clk 0:00:03]}  Bg2 {[%clk 0:00:13]} 61. Re1+ {[%clk 0:00:01]}  Kf4 {[%clk 0:00:14]} 0-1

[Event "November 21 Early 2023"]
[Site "https://www.chess.com"]
[Date "2023.11.21"]
[Round "1"]
[White "Pendos666"]
[Black "Zoete, Roelant"]
[Result "1-0"]
[Board "79"]
[TimeControl "180+1"]
[BlackFideId "40103269"]
[WhiteElo "2803"]
[BlackElo "2446"]
[BlackTeam "NED"]
[WhiteClock "0:00:45"]
[BlackClock "0:00:03"]

1. e4 {[%clk 0:03:00]}  e5 {[%clk 0:02:57]} 2. Nf3 {[%clk 0:03:00]}  Nc6 {[%clk 0:02:57]} 3. Bb5 {[%clk 0:03:00]}  a6 {[%clk 0:02:55]} 4. Bxc6 {[%clk 0:02:59]}  dxc6 {[%clk 0:02:56]} 5. O-O {[%clk 0:02:58]}  Bg4 {[%clk 0:02:57]} 6. h3 {[%clk 0:02:58]}  h5 {[%clk 0:02:57]} 7. d3 {[%clk 0:02:58]}  Qf6 {[%clk 0:02:56]} 8. Nbd2 {[%clk 0:02:58]}  g5 {[%clk 0:02:56]} 9. d4 {[%clk 0:02:54]}  exd4 {[%clk 0:02:47]} 10. e5 {[%clk 0:02:14]}  Qg6 {[%clk 0:02:38]} 11. Re1 {[%clk 0:02:10]}  Bxf3 {[%clk 0:02:14]} 12. Nxf3 {[%clk 0:02:06]}  O-O-O {[%clk 0:02:07]} 13. Bxg5 {[%clk 0:02:05]}  Be7 {[%clk 0:02:06]} 14. Qd3 {[%clk 0:01:56]}  Qg7 {[%clk 0:01:28]} 15. Qf5+ {[%clk 0:01:51]}  Kb8 {[%clk 0:01:26]} 16. e6 {[%clk 0:01:45]}  fxe6 {[%clk 0:01:14]} 17. Rxe6 {[%clk 0:01:44]}  Bxg5 {[%clk 0:01:12]} 18. Qxg5 {[%clk 0:01:42]}  Qd7 {[%clk 0:01:01]} 19. Rae1 {[%clk 0:01:40]}  Ka7 {[%clk 0:00:27]} 20. Qc5+ {[%clk 0:01:33]}  Kb8 {[%clk 0:00:26]} 21. Qe5 {[%clk 0:01:32]}  Nh6 {[%clk 0:00:24]} 22. Re7 {[%clk 0:01:27]}  Qd6 {[%clk 0:00:24]} 23. Qxh5 {[%clk 0:01:12]}  Rdg8 {[%clk 0:00:18]} 24. Qe5 {[%clk 0:01:10]}  Qd8 {[%clk 0:00:17]} 25. Nxd4 {[%clk 0:01:02]}  Ka7 {[%clk 0:00:10]} 26. Qxc7 {[%clk 0:00:56]}  Qxc7 {[%clk 0:00:08]} 27. Rxc7 {[%clk 0:00:56]}  Rf8 {[%clk 0:00:08]} 28. Ree7 {[%clk 0:00:52]}  Rb8 {[%clk 0:00:09]} 29. Nxc6+ {[%clk 0:00:52]}  Kb6 {[%clk 0:00:08]} 30. Nxb8 {[%clk 0:00:53]}  Rxb8 {[%clk 0:00:08]} 31. g4 {[%clk 0:00:53]}  Ng8 {[%clk 0:00:08]} 32. Rf7 {[%clk 0:00:53]}  Nh6 {[%clk 0:00:08]} 33. Rg7 {[%clk 0:00:51]}  Ng8 {[%clk 0:00:08]} 34. g5 {[%clk 0:00:51]}  a5 {[%clk 0:00:08]} 35. h4 {[%clk 0:00:51]}  a4 {[%clk 0:00:09]} 36. h5 {[%clk 0:00:51]}  a3 {[%clk 0:00:09]} 37. bxa3 {[%clk 0:00:51]}  Ka6 {[%clk 0:00:08]} 38. h6 {[%clk 0:00:51]}  Nxh6 {[%clk 0:00:06]} 39. gxh6 {[%clk 0:00:52]}  b5 {[%clk 0:00:07]} 40. h7 {[%clk 0:00:51]}  b4 {[%clk 0:00:06]} 41. Rg8 {[%clk 0:00:48]}  Rb6 {[%clk 0:00:02]} 42. h8=Q {[%clk 0:00:47]}  bxa3 {[%clk 0:00:02]} 43. Ra8+ {[%clk 0:00:45]}  Kb5 {[%clk 0:00:02]} 44. Qe5+ {[%clk 0:00:46]}  Kb4 {[%clk 0:00:03]} 45. Qa5# {[%clk 0:00:45]} 1-0

[Event "November 21 Early 2023"]
[Site "https://www.chess.com"]
[Date "2023.11.21"]
[Round "1"]
[White "Weetik, Vjacheslav"]
[Black "PoXerStar"]
[Result "1-0"]
[Board "81"]
[TimeControl "180+1"]
[WhiteFideId "4153472"]
[WhiteElo "2469"]
[BlackElo "2444"]
[WhiteTeam "RUS"]
[WhiteClock "0:01:00"]
[BlackClock "0:00:22"]

1. e4 {[%clk 0:02:58]}  c6 {[%clk 0:02:56]} 2. d4 {[%clk 0:02:57]}  d5 {[%clk 0:02:54]} 3. exd5 {[%clk 0:02:58]}  cxd5 {[%clk 0:02:52]} 4. Bd3 {[%clk 0:02:58]}  Nf6 {[%clk 0:02:52]} 5. c3 {[%clk 0:02:58]}  Bg4 {[%clk 0:02:52]} 6. Qb3 {[%clk 0:02:56]}  Qc7 {[%clk 0:02:53]} 7. h3 {[%clk 0:02:52]}  Bd7 {[%clk 0:02:52]} 8. Ne2 {[%clk 0:02:49]}  Nc6 {[%clk 0:02:50]} 9. Bf4 {[%clk 0:02:48]}  Qc8 {[%clk 0:02:51]} 10. Nd2 {[%clk 0:02:47]}  e6 {[%clk 0:02:51]} 11. O-O {[%clk 0:02:43]}  Be7 {[%clk 0:02:51]} 12. Rfe1 {[%clk 0:02:42]}  O-O {[%clk 0:02:52]} 13. a4 {[%clk 0:02:41]}  Na5 {[%clk 0:02:41]} 14. Qc2 {[%clk 0:02:41]}  a6 {[%clk 0:02:42]} 15. Ng3 {[%clk 0:02:39]}  Re8 {[%clk 0:02:33]} 16. Nf3 {[%clk 0:02:31]}  b5 {[%clk 0:02:27]} 17. Ne5 {[%clk 0:02:28]}  b4 {[%clk 0:02:25]} 18. Bg5 {[%clk 0:01:57]}  h6 {[%clk 0:02:03]} 19. Bxf6 {[%clk 0:01:56]}  Bxf6 {[%clk 0:02:03]} 20. Bh7+ {[%clk 0:01:50]}  Kf8 {[%clk 0:02:02]} 21. Ng4 {[%clk 0:01:36]}  Bh4 {[%clk 0:01:55]} 22. Nh5 {[%clk 0:01:35]}  bxc3 {[%clk 0:01:47]} 23. bxc3 {[%clk 0:01:34]}  Nc4 {[%clk 0:01:48]} 24. Bd3 {[%clk 0:01:25]}  e5 {[%clk 0:01:01]} 25. Bxc4 {[%clk 0:01:22]}  Bxg4 {[%clk 0:00:58]} 26. hxg4 {[%clk 0:01:14]}  Qxc4 {[%clk 0:00:58]} 27. Qh7 {[%clk 0:01:13]}  Bf6 {[%clk 0:00:32]} 28. dxe5 {[%clk 0:01:04]}  Rxe5 {[%clk 0:00:28]} 29. Rxe5 {[%clk 0:01:00]}  Bxe5 {[%clk 0:00:29]} 30. Qh8+ {[%clk 0:01:00]}  Ke7 {[%clk 0:00:22]} 31. Qxa8 {[%clk 0:01:00]} 1-0

[Event "November 21 Early 2023"]
[Site "https://www.chess.com"]
[Date "2023.11.21"]
[Round "1"]
[White "Materia, Marco"]
[Black "Bychkov, Vladimir"]
[Result "0-1"]
[Board "83"]
[TimeControl "180+1"]
[WhiteFideId "45150451"]
[BlackFideId "24151513"]
[WhiteElo "2451"]
[BlackElo "2224"]
[WhiteTeam "FRA"]
[BlackTeam "RUS"]
[WhiteClock "0:00:30"]
[BlackClock "0:00:51"]

1. Nf3 {[%clk 0:03:00]}  Nf6 {[%clk 0:02:59]} 2. c4 {[%clk 0:03:01]}  c5 {[%clk 0:02:59]} 3. Nc3 {[%clk 0:03:01]}  d5 {[%clk 0:03:00]} 4. cxd5 {[%clk 0:03:01]}  Nxd5 {[%clk 0:03:01]} 5. g3 {[%clk 0:03:01]}  Nc6 {[%clk 0:03:01]} 6. Bg2 {[%clk 0:03:01]}  e5 {[%clk 0:03:01]} 7. O-O {[%clk 0:02:58]}  Be6 {[%clk 0:02:59]} 8. d3 {[%clk 0:02:54]}  Be7 {[%clk 0:02:59]} 9. Bd2 {[%clk 0:02:54]}  O-O {[%clk 0:02:58]} 10. Rc1 {[%clk 0:02:54]}  Rc8 {[%clk 0:02:52]} 11. a3 {[%clk 0:02:52]}  b6 {[%clk 0:02:51]} 12. Qa4 {[%clk 0:02:49]}  f6 {[%clk 0:02:47]} 13. b4 {[%clk 0:02:38]}  cxb4 {[%clk 0:02:20]} 14. Nxd5 {[%clk 0:02:37]}  Bxd5 {[%clk 0:02:16]} 15. e4 {[%clk 0:02:20]}  Bf7 {[%clk 0:01:43]} 16. Rxc6 {[%clk 0:01:53]}  Qd7 {[%clk 0:01:42]} 17. Rfc1 {[%clk 0:01:53]}  Be8 {[%clk 0:01:40]} 18. Qb3+ {[%clk 0:01:30]}  Bf7 {[%clk 0:01:41]} 19. Qc2 {[%clk 0:01:13]}  b3 {[%clk 0:01:35]} 20. Rc7 {[%clk 0:01:10]}  Rxc7 {[%clk 0:01:29]} 21. Qxc7 {[%clk 0:01:10]}  Qxc7 {[%clk 0:01:30]} 22. Rxc7 {[%clk 0:01:10]}  b2 {[%clk 0:01:30]} 23. Rxe7 {[%clk 0:01:03]}  b1=Q+ {[%clk 0:01:30]} 24. Be1 {[%clk 0:00:54]}  Bh5 {[%clk 0:01:24]} 25. Rxa7 {[%clk 0:00:41]}  Bxf3 {[%clk 0:01:22]} 26. Bxf3 {[%clk 0:00:41]}  Qxe1+ {[%clk 0:01:23]} 27. Kg2 {[%clk 0:00:42]}  Qc3 {[%clk 0:01:04]} 28. Bg4 {[%clk 0:00:40]}  Qxd3 {[%clk 0:01:03]} 29. Be6+ {[%clk 0:00:39]}  Kh8 {[%clk 0:01:03]} 30. Bd5 {[%clk 0:00:40]}  h5 {[%clk 0:00:59]} 31. h4 {[%clk 0:00:39]}  Kh7 {[%clk 0:00:55]} 32. a4 {[%clk 0:00:38]}  Rc8 {[%clk 0:00:54]} 33. Be6 {[%clk 0:00:34]}  Qxe4+ {[%clk 0:00:53]} 34. Kh2 {[%clk 0:00:30]}  Rc2 {[%clk 0:00:51]} 0-1

[Event "November 21 Early 2023"]
[Site "https://www.chess.com"]
[Date "2023.11.21"]
[Round "1"]
[White "Bogaudinov, Rushan"]
[Black "Lobanov, Sergei"]
[Result "0-1"]
[Board "84"]
[TimeControl "180+1"]
[WhiteFideId "4129288"]
[BlackFideId "24183750"]
[WhiteElo "1908"]
[BlackElo "2483"]
[WhiteTeam "RUS"]
[BlackTeam "FID"]
[WhiteClock "0:00:30"]
[BlackClock "0:00:26"]

1. d4 {[%clk 0:02:58]}  Nf6 {[%clk 0:03:00]} 2. Nf3 {[%clk 0:02:58]}  d5 {[%clk 0:03:00]} 3. e3 {[%clk 0:02:59]}  c5 {[%clk 0:03:00]} 4. Be2 {[%clk 0:02:58]}  Nc6 {[%clk 0:03:00]} 5. O-O {[%clk 0:02:58]}  cxd4 {[%clk 0:03:01]} 6. Nxd4 {[%clk 0:02:57]}  e5 {[%clk 0:02:57]} 7. Nxc6 {[%clk 0:02:57]}  bxc6 {[%clk 0:02:58]} 8. c4 {[%clk 0:02:58]}  Be7 {[%clk 0:02:58]} 9. Nc3 {[%clk 0:02:56]}  O-O {[%clk 0:02:58]} 10. cxd5 {[%clk 0:02:50]}  cxd5 {[%clk 0:02:59]} 11. b3 {[%clk 0:02:51]}  Be6 {[%clk 0:02:58]} 12. Bb2 {[%clk 0:02:50]}  Qa5 {[%clk 0:02:35]} 13. Na4 {[%clk 0:02:48]}  Nd7 {[%clk 0:02:28]} 14. Rc1 {[%clk 0:02:44]}  Rac8 {[%clk 0:02:27]} 15. Qd3 {[%clk 0:02:24]}  f6 {[%clk 0:01:49]} 16. h4 {[%clk 0:02:12]}  Nb6 {[%clk 0:01:18]} 17. Nxb6 {[%clk 0:02:09]}  axb6 {[%clk 0:01:12]} 18. a3 {[%clk 0:01:59]}  Rfd8 {[%clk 0:00:47]} 19. b4 {[%clk 0:01:56]}  Qa4 {[%clk 0:00:47]} 20. Bd1 {[%clk 0:01:47]}  Qd7 {[%clk 0:00:46]} 21. Bb3 {[%clk 0:01:42]}  b5 {[%clk 0:00:43]} 22. h5 {[%clk 0:01:37]}  Rc4 {[%clk 0:00:40]} 23. Bxc4 {[%clk 0:01:27]}  bxc4 {[%clk 0:00:41]} 24. Qb1 {[%clk 0:01:27]}  Bf5 {[%clk 0:00:40]} 25. Qa2 {[%clk 0:01:24]}  Bd3 {[%clk 0:00:40]} 26. Rfd1 {[%clk 0:01:20]}  Qa4 {[%clk 0:00:40]} 27. h6 {[%clk 0:01:16]}  gxh6 {[%clk 0:00:38]} 28. Qa1 {[%clk 0:01:08]}  h5 {[%clk 0:00:31]} 29. f4 {[%clk 0:01:04]}  Qa7 {[%clk 0:00:27]} 30. fxe5 {[%clk 0:00:57]}  Qxe3+ {[%clk 0:00:27]} 31. Kh1 {[%clk 0:00:58]}  Be4 {[%clk 0:00:26]} 32. Rc3 {[%clk 0:00:47]}  Qf2 {[%clk 0:00:26]} 33. Rg1 {[%clk 0:00:30]}  Qh4+ {[%clk 0:00:26]} 0-1